[Event "*** SCC Grand Prix: Titled Tuesday Blitz"]
[Site "Chess.com"]
[Date "2020.08.11"]
[Round "9"]
[White "The_Machine04"]
[Black "GMHess"]
[Result "1-0"]
[WhiteElo "2293"]
[BlackElo "2766"]
[TimeControl "180+1"]
[EndTime "11:46:12 PDT"]
[Termination "The_Machine04 won by checkmate"]

1. d4 {[%clk 0:03:00.9]} 1... g6 {[%clk 0:03:00]} 2. Nf3 {[%clk 0:02:59.6]} 2...
Bg7 {[%clk 0:03:00.9]} 3. Nbd2 {[%clk 0:03:00]} 3... d6 {[%clk 0:02:58.2]} 4. e4
{[%clk 0:02:58.6]} 4... a6 {[%clk 0:02:58.8]} 5. c3 {[%clk 0:02:58.1]} 5... Nd7
{[%clk 0:02:59.3]} 6. Bc4 {[%clk 0:02:57]} 6... e6 {[%clk 0:02:59.5]} 7. O-O
{[%clk 0:02:56.3]} 7... Ne7 {[%clk 0:02:59.9]} 8. Re1 {[%clk 0:02:55.3]} 8... h6
{[%clk 0:02:59.3]} 9. a4 {[%clk 0:02:53.4]} 9... b6 {[%clk 0:02:59.5]} 10. b4
{[%clk 0:02:52.6]} 10... Bb7 {[%clk 0:02:59.4]} 11. Nf1 {[%clk 0:02:41.1]} 11...
e5 {[%clk 0:02:51]} 12. Ng3 {[%clk 0:02:20.9]} 12... Nc6 {[%clk 0:02:50]} 13.
Be3 {[%clk 0:02:11.1]} 13... Qe7 {[%clk 0:02:43.7]} 14. b5 {[%clk 0:01:58.1]}
14... Na5 {[%clk 0:02:39.4]} 15. Ba2 {[%clk 0:01:45.2]} 15... O-O {[%clk
0:02:31.5]} 16. Qc2 {[%clk 0:01:40.7]} 16... Kh7 {[%clk 0:02:28.3]} 17. h4
{[%clk 0:01:38.9]} 17... Nf6 {[%clk 0:02:18.9]} 18. h5 {[%clk 0:01:27.1]} 18...
Ng4 {[%clk 0:02:09.9]} 19. Rf1 {[%clk 0:01:00]} 19... axb5 {[%clk 0:01:53.9]}
20. axb5 {[%clk 0:00:59.3]} 20... Rae8 {[%clk 0:01:36]} 21. Rae1 {[%clk
0:00:49.1]} 21... Bf6 {[%clk 0:01:29.6]} 22. Bd2 {[%clk 0:00:40.4]} 22... Bh4
{[%clk 0:01:20.8]} 23. Bd5 {[%clk 0:00:23.1]} 23... Bc8 {[%clk 0:01:03.2]} 24.
Nh2 {[%clk 0:00:20.8]} 24... Nxh2 {[%clk 0:00:53.8]} 25. Kxh2 {[%clk 0:00:21.7]}
25... Bd7 {[%clk 0:00:48]} 26. Rb1 {[%clk 0:00:14.2]} 26... Rg8 {[%clk
0:00:23.3]} 27. Qc1 {[%clk 0:00:13.2]} 27... gxh5 {[%clk 0:00:19.1]} 28. Nf5
{[%clk 0:00:07]} 28... Bxf5 {[%clk 0:00:17.4]} 29. exf5 {[%clk 0:00:07.9]} 29...
Qf6 {[%clk 0:00:14.1]} 30. g3 {[%clk 0:00:06.3]} 30... Bg5 {[%clk 0:00:12]} 31.
Bxg5 {[%clk 0:00:06]} 31... Rxg5 {[%clk 0:00:11.2]} 32. Qc2 {[%clk 0:00:03.7]}
32... h4 {[%clk 0:00:11.1]} 33. Rg1 {[%clk 0:00:02.8]} 33... Reg8 {[%clk
0:00:09.7]} 34. Rbe1 {[%clk 0:00:02]} 34... exd4 {[%clk 0:00:08.8]} 35. cxd4
{[%clk 0:00:02]} 35... Qxd4 {[%clk 0:00:08.9]} 36. Bxf7 {[%clk 0:00:01.8]} 36...
R8g7 {[%clk 0:00:05.5]} 37. Bg6+ {[%clk 0:00:01.8]} 37... Kh8 {[%clk 0:00:04.1]}
38. Re8+ {[%clk 0:00:01.7]} 38... Rg8 {[%clk 0:00:04.6]} 39. Rxg8+ {[%clk
0:00:02.6]} 39... Kxg8 {[%clk 0:00:05.5]} 40. Qa2+ {[%clk 0:00:03.2]} 40... Kh8
{[%clk 0:00:04.9]} 41. Qf7 {[%clk 0:00:03.1]} 41... Qxf2+ {[%clk 0:00:04.8]} 42.
Rg2 {[%clk 0:00:02.9]} 42... hxg3+ {[%clk 0:00:04]} 43. Kh3 {[%clk 0:00:03.1]}
43... Rh5+ {[%clk 0:00:01.7]} 44. Bxh5 {[%clk 0:00:03]} 44... Qd4 {[%clk
0:00:01.8]} 45. Qf8+ {[%clk 0:00:03.3]} 45... Kh7 {[%clk 0:00:01.9]} 46. Bg6#
{[%clk 0:00:03.9]} 1-0

[Event "*** SCC Grand Prix: Titled Tuesday Blitz"]
[Site "Chess.com"]
[Date "2020.08.11"]
[Round "9"]
[White "Evachess2006"]
[Black "Klavdia_Nik"]
[Result "0-1"]
[WhiteElo "1631"]
[BlackElo "2053"]
[TimeControl "180+1"]
[EndTime "11:46:13 PDT"]
[Termination "Klavdia_Nik won by resignation"]

1. e4 {[%clk 0:03:00.9]} 1... g6 {[%clk 0:01:59.2]} 2. d4 {[%clk 0:02:52.3]}
2... Bg7 {[%clk 0:01:57.2]} 3. c3 {[%clk 0:02:44.9]} 3... d6 {[%clk 0:01:50.6]}
4. g3 {[%clk 0:02:39.1]} 4... Nd7 {[%clk 0:01:48.4]} 5. Bg2 {[%clk 0:02:36.1]}
5... c5 {[%clk 0:01:48.9]} 6. Ne2 {[%clk 0:02:35.2]} 6... Ngf6 {[%clk
0:01:48.1]} 7. Be3 {[%clk 0:02:31.7]} 7... Ng4 {[%clk 0:01:36.6]} 8. O-O {[%clk
0:02:19.3]} 8... Nxe3 {[%clk 0:01:35.1]} 9. fxe3 {[%clk 0:02:14.4]} 9... O-O
{[%clk 0:01:35.6]} 10. Nd2 {[%clk 0:02:10.2]} 10... Rb8 {[%clk 0:01:35.4]} 11.
Nb3 {[%clk 0:02:06.7]} 11... b6 {[%clk 0:01:29.7]} 12. Qd2 {[%clk 0:02:04.2]}
12... a5 {[%clk 0:01:26.2]} 13. a4 {[%clk 0:01:58]} 13... Ba6 {[%clk 0:01:23.4]}
14. dxc5 {[%clk 0:01:56.1]} 14... bxc5 {[%clk 0:01:18.6]} 15. Nbc1 {[%clk
0:01:46.6]} 15... Ne5 {[%clk 0:01:08.9]} 16. b3 {[%clk 0:01:42.3]} 16... Bh6
{[%clk 0:00:59.7]} 17. Nf4 {[%clk 0:01:34.6]} 17... Bxf1 {[%clk 0:00:40]} 18.
Kxf1 {[%clk 0:01:31.5]} 18... Qb6 {[%clk 0:00:39.1]} 19. Nd5 {[%clk 0:01:25.1]}
19... Qb7 {[%clk 0:00:34.5]} 20. Nd3 {[%clk 0:01:12.3]} 20... Nxd3 {[%clk
0:00:26]} 21. Qxd3 {[%clk 0:01:10.6]} 21... Rfe8 {[%clk 0:00:21.9]} 22. Qb5
{[%clk 0:01:06.4]} 22... Qxb5+ {[%clk 0:00:18.8]} 23. axb5 {[%clk 0:01:06.6]}
23... Rxb5 {[%clk 0:00:17.9]} 24. Nc7 {[%clk 0:01:03]} 24... Reb8 {[%clk
0:00:16.6]} 25. Nxb5 {[%clk 0:00:59.7]} 25... Rxb5 {[%clk 0:00:16.6]} 26. Ra3
{[%clk 0:00:33.5]} 26... Bxe3 {[%clk 0:00:15.3]} 27. Ke2 {[%clk 0:00:32.4]}
27... Bc1 {[%clk 0:00:13.5]} 28. c4 {[%clk 0:00:20.2]} 28... Rb4 {[%clk
0:00:10.6]} 29. Ra4 {[%clk 0:00:18.8]} 29... Rxb3 {[%clk 0:00:10.2]} 30. Rxa5
{[%clk 0:00:17]} 30... Rb2+ {[%clk 0:00:10.3]} 31. Kf3 {[%clk 0:00:15]} 31...
Bg5 {[%clk 0:00:10.1]} 32. Ra8+ {[%clk 0:00:13.8]} 32... Kg7 {[%clk 0:00:10]}
33. h4 {[%clk 0:00:14.3]} 33... Bf6 {[%clk 0:00:10.1]} 34. Bf1 {[%clk
0:00:13.5]} 34... Rb3+ {[%clk 0:00:08.7]} 35. Kg2 {[%clk 0:00:12.4]} 35... h5
{[%clk 0:00:09.1]} 36. Kf2 {[%clk 0:00:11.8]} 36... Bd4+ {[%clk 0:00:08.6]} 37.
Kg2 {[%clk 0:00:08.1]} 37... Be5 {[%clk 0:00:09.1]} 38. Ra7 {[%clk 0:00:05.8]}
38... Rxg3+ {[%clk 0:00:08.7]} 39. Kf2 {[%clk 0:00:05.8]} 39... Kf6 {[%clk
0:00:09.1]} 40. Be2 {[%clk 0:00:03.2]} 40... Rh3 {[%clk 0:00:09.2]} 41. Bf3
{[%clk 0:00:03.7]} 41... Rxh4 {[%clk 0:00:08.3]} 42. Ra2 {[%clk 0:00:03.9]}
42... Rh2+ {[%clk 0:00:08.2]} 43. Ke3 {[%clk 0:00:04]} 43... Rxa2 {[%clk
0:00:07.5]} 0-1

[Event "*** SCC Grand Prix: Titled Tuesday Blitz"]
[Site "Chess.com"]
[Date "2020.08.11"]
[Round "9"]
[White "ClydeHillKid"]
[Black "londonkid"]
[Result "1-0"]
[WhiteElo "2335"]
[BlackElo "2432"]
[TimeControl "180+1"]
[EndTime "11:46:14 PDT"]
[Termination "ClydeHillKid won by checkmate"]

1. e4 {[%clk 0:03:00.9]} 1... e6 {[%clk 0:02:59.9]} 2. d3 {[%clk 0:03:00.4]}
2... d5 {[%clk 0:02:57.8]} 3. Nd2 {[%clk 0:02:59.8]} 3... Nf6 {[%clk 0:02:58.1]}
4. Ngf3 {[%clk 0:02:57.6]} 4... c5 {[%clk 0:02:58.3]} 5. g3 {[%clk 0:02:52.6]}
5... Nc6 {[%clk 0:02:58.4]} 6. Bg2 {[%clk 0:02:45.4]} 6... Be7 {[%clk 0:02:58]}
7. O-O {[%clk 0:02:44.5]} 7... Qc7 {[%clk 0:02:58.4]} 8. Re1 {[%clk 0:02:42.5]}
8... b6 {[%clk 0:02:58.9]} 9. e5 {[%clk 0:02:41]} 9... Nd7 {[%clk 0:02:59.1]}
10. Qe2 {[%clk 0:02:41.6]} 10... Bb7 {[%clk 0:02:59.7]} 11. Nf1 {[%clk
0:02:39.8]} 11... h6 {[%clk 0:02:59.7]} 12. h4 {[%clk 0:02:39.7]} 12... O-O-O
{[%clk 0:02:59.8]} 13. N1h2 {[%clk 0:02:39.4]} 13... Rdg8 {[%clk 0:02:59.4]} 14.
Ng4 {[%clk 0:02:39.4]} 14... g5 {[%clk 0:02:58.6]} 15. h5 {[%clk 0:02:39.2]}
15... Kb8 {[%clk 0:02:48.2]} 16. c3 {[%clk 0:02:31.7]} 16... a6 {[%clk
0:02:45.7]} 17. Bd2 {[%clk 0:02:31.2]} 17... Ka7 {[%clk 0:02:41.3]} 18. Rab1
{[%clk 0:02:22.6]} 18... Nd8 {[%clk 0:02:41.4]} 19. b4 {[%clk 0:02:21.6]} 19...
c4 {[%clk 0:02:38.4]} 20. Nd4 {[%clk 0:02:18.5]} 20... Re8 {[%clk 0:02:21.1]}
21. a4 {[%clk 0:02:10]} 21... f5 {[%clk 0:02:17.7]} 22. exf6 {[%clk 0:02:08.7]}
22... Bxf6 {[%clk 0:02:18]} 23. Nxf6 {[%clk 0:02:03.7]} 23... Nxf6 {[%clk
0:02:17.9]} 24. dxc4 {[%clk 0:02:03.8]} 24... dxc4 {[%clk 0:02:11.6]} 25. Bxb7
{[%clk 0:01:59.4]} 25... Qxb7 {[%clk 0:02:10.6]} 26. Qxc4 {[%clk 0:01:47.4]}
26... Nxh5 {[%clk 0:02:04.3]} 27. a5 {[%clk 0:01:35.8]} 27... b5 {[%clk
0:02:01.6]} 28. Qc5+ {[%clk 0:01:35.8]} 28... Ka8 {[%clk 0:02:01.4]} 29. c4
{[%clk 0:01:31.7]} 29... e5 {[%clk 0:01:56.7]} 30. Nxb5 {[%clk 0:01:17.5]} 30...
axb5 {[%clk 0:01:49.9]} 31. a6 {[%clk 0:01:17.2]} 31... Qc6 {[%clk 0:01:46.2]}
32. cxb5 {[%clk 0:01:16.9]} 32... Qxc5 {[%clk 0:01:42.8]} 33. bxc5 {[%clk
0:01:17.8]} 33... Ne6 {[%clk 0:01:43.1]} 34. Rxe5 {[%clk 0:01:13.1]} 34... Nd4
{[%clk 0:01:43.4]} 35. Rxe8+ {[%clk 0:01:10.9]} 35... Rxe8 {[%clk 0:01:43.1]}
36. Be3 {[%clk 0:01:11]} 36... Ne2+ {[%clk 0:01:36]} 37. Kg2 {[%clk 0:01:04.2]}
37... Nc3 {[%clk 0:01:36]} 38. Rb3 {[%clk 0:01:03]} 38... Nd5 {[%clk 0:01:36.3]}
39. b6 {[%clk 0:00:59.4]} 39... Nhf6 {[%clk 0:01:31.3]} 40. c6 {[%clk
0:00:54.4]} 40... Nxe3+ {[%clk 0:01:19.9]} 41. fxe3 {[%clk 0:00:49.5]} 41... Nd5
{[%clk 0:01:20.1]} 42. e4 {[%clk 0:00:41.4]} 42... Nxb6 {[%clk 0:01:14.2]} 43.
Rxb6 {[%clk 0:00:42.3]} 43... Ka7 {[%clk 0:01:14.6]} 44. Rb7+ {[%clk 0:00:36.4]}
44... Kxa6 {[%clk 0:01:15]} 45. Rh7 {[%clk 0:00:37.3]} 45... Rxe4 {[%clk
0:01:13.1]} 46. Rxh6 {[%clk 0:00:34.3]} 46... Kb6 {[%clk 0:01:13.2]} 47. Kf3
{[%clk 0:00:33.2]} 47... Rc4 {[%clk 0:01:12.7]} 48. Rg6 {[%clk 0:00:26.6]} 48...
Kc7 {[%clk 0:01:07.8]} 49. g4 {[%clk 0:00:16.8]} 49... Rf4+ {[%clk 0:01:03.9]}
50. Kg3 {[%clk 0:00:16]} 50... Rc4 {[%clk 0:01:03.5]} 51. Rxg5 {[%clk
0:00:11.3]} 51... Rxc6 {[%clk 0:01:03.5]} 52. Rd5 {[%clk 0:00:11]} 52... Rc4
{[%clk 0:01:02.5]} 53. Kh4 {[%clk 0:00:10]} 53... Kc6 {[%clk 0:01:03.1]} 54. Rd1
{[%clk 0:00:09]} 54... Rc5 {[%clk 0:00:58.4]} 55. g5 {[%clk 0:00:08.8]} 55...
Kc7 {[%clk 0:00:56.3]} 56. Kh5 {[%clk 0:00:08.9]} 56... Kc8 {[%clk 0:00:55.6]}
57. Kh6 {[%clk 0:00:09]} 57... Rc6+ {[%clk 0:00:55.1]} 58. g6 {[%clk 0:00:09.5]}
58... Rc3 {[%clk 0:00:55.2]} 59. Kg7 {[%clk 0:00:08]} 59... Rg3 {[%clk
0:00:55.1]} 60. Kh7 {[%clk 0:00:07.8]} 60... Rh3+ {[%clk 0:00:55.1]} 61. Kg8
{[%clk 0:00:07.9]} 61... Rg3 {[%clk 0:00:56]} 62. g7 {[%clk 0:00:08.2]} 62...
Kc7 {[%clk 0:00:56.2]} 63. Rh1 {[%clk 0:00:06.8]} 63... Kd6 {[%clk 0:00:55.6]}
64. Kh8 {[%clk 0:00:06.6]} 64... Ke6 {[%clk 0:00:51.3]} 65. g8=Q+ {[%clk
0:00:05.7]} 65... Rxg8+ {[%clk 0:00:51.4]} 66. Kxg8 {[%clk 0:00:06.6]} 66... Kd5
{[%clk 0:00:52.2]} 67. Kf7 {[%clk 0:00:06.8]} 67... Kc4 {[%clk 0:00:53.1]} 68.
Ke6 {[%clk 0:00:07.4]} 68... Kb3 {[%clk 0:00:54]} 69. Kd5 {[%clk 0:00:07.8]}
69... Kc3 {[%clk 0:00:54.9]} 70. Kc5 {[%clk 0:00:07.7]} 70... Kb2 {[%clk
0:00:55.8]} 71. Rh4 {[%clk 0:00:07.8]} 71... Ka2 {[%clk 0:00:56.7]} 72. Kc4
{[%clk 0:00:08.3]} 72... Kb2 {[%clk 0:00:57.6]} 73. Rh3 {[%clk 0:00:09]} 73...
Ka2 {[%clk 0:00:58.5]} 74. Kc3 {[%clk 0:00:08.9]} 74... Ka1 {[%clk 0:00:59]} 75.
Kb3 {[%clk 0:00:08.4]} 75... Kb1 {[%clk 0:00:59.9]} 76. Rh1# {[%clk 0:00:08.7]}
1-0

[Event "*** SCC Grand Prix: Titled Tuesday Blitz"]
[Site "Chess.com"]
[Date "2020.08.11"]
[Round "9"]
[White "Sacbutt"]
[Black "canary2016"]
[Result "1-0"]
[WhiteElo "2180"]
[BlackElo "1874"]
[TimeControl "180+1"]
[EndTime "11:46:14 PDT"]
[Termination "Sacbutt won by checkmate"]

1. e4 {[%clk 0:03:00]} 1... c5 {[%clk 0:02:56.7]} 2. Nf3 {[%clk 0:02:59.2]} 2...
d6 {[%clk 0:02:55.4]} 3. d4 {[%clk 0:02:59.1]} 3... cxd4 {[%clk 0:02:54.9]} 4.
Nxd4 {[%clk 0:02:59.9]} 4... Nf6 {[%clk 0:02:55.1]} 5. Nc3 {[%clk 0:03:00.5]}
5... a6 {[%clk 0:02:55.5]} 6. Bg5 {[%clk 0:03:00.7]} 6... e6 {[%clk 0:02:54.9]}
7. f4 {[%clk 0:02:59.7]} 7... h6 {[%clk 0:02:54.2]} 8. Bh4 {[%clk 0:02:54.1]}
8... Qb6 {[%clk 0:02:53.4]} 9. Qd2 {[%clk 0:02:48.5]} 9... Qxb2 {[%clk
0:02:40.9]} 10. Rb1 {[%clk 0:02:47.6]} 10... Qa3 {[%clk 0:02:41]} 11. f5 {[%clk
0:02:45]} 11... e5 {[%clk 0:02:39.4]} 12. Nb3 {[%clk 0:02:42.8]} 12... Be7
{[%clk 0:02:36.6]} 13. Bxf6 {[%clk 0:02:39.3]} 13... Bxf6 {[%clk 0:02:36.3]} 14.
Nd5 {[%clk 0:02:38.1]} 14... Bg5 {[%clk 0:02:25.8]} 15. Qf2 {[%clk 0:02:27]}
15... O-O {[%clk 0:02:15.5]} 16. Bd3 {[%clk 0:02:14.3]} 16... Nc6 {[%clk
0:02:12.5]} 17. O-O {[%clk 0:02:10.4]} 17... Nb4 {[%clk 0:02:03.8]} 18. Nb6
{[%clk 0:01:54.8]} 18... Rb8 {[%clk 0:01:59.8]} 19. h4 {[%clk 0:01:32.7]} 19...
Bf6 {[%clk 0:01:48.3]} 20. Nc1 {[%clk 0:01:23.5]} 20... Nxd3 {[%clk 0:01:38.9]}
21. Nxd3 {[%clk 0:01:17.6]} 21... Bd8 {[%clk 0:01:35.4]} 22. Nd5 {[%clk
0:01:17.1]} 22... b5 {[%clk 0:01:30.3]} 23. Rb3 {[%clk 0:01:11.6]} 23... Qa4
{[%clk 0:01:24]} 24. N3b4 {[%clk 0:01:05.4]} 24... Bb7 {[%clk 0:01:11.7]} 25. f6
{[%clk 0:01:04.5]} 25... Bxd5 {[%clk 0:01:11]} 26. Nxd5 {[%clk 0:01:03]} 26...
Qxe4 {[%clk 0:01:07.9]} 27. fxg7 {[%clk 0:00:51.6]} 27... Qxd5 {[%clk
0:00:59.1]} 28. gxf8=Q+ {[%clk 0:00:48.9]} 28... Kxf8 {[%clk 0:00:59.1]} 29. Rd3
{[%clk 0:00:37.6]} 29... Qe6 {[%clk 0:00:57.2]} 30. Rxd6 {[%clk 0:00:35.2]}
30... Qxa2 {[%clk 0:00:39.5]} 31. Rxa6 {[%clk 0:00:29.8]} 31... Qc4 {[%clk
0:00:31.8]} 32. Rxh6 {[%clk 0:00:23.9]} 32... Ke7 {[%clk 0:00:20.2]} 33. Qf6+
{[%clk 0:00:19.9]} 33... Ke8 {[%clk 0:00:18.6]} 34. Rh8+ {[%clk 0:00:18.3]}
34... Kd7 {[%clk 0:00:18.1]} 35. Rd1+ {[%clk 0:00:18.7]} 35... Kc7 {[%clk
0:00:16.2]} 36. Rhxd8 {[%clk 0:00:17.2]} 36... Qc5+ {[%clk 0:00:15.3]} 37. Kh1
{[%clk 0:00:16.9]} 37... Rxd8 {[%clk 0:00:14.3]} 38. Qxd8+ {[%clk 0:00:17.3]}
38... Kb7 {[%clk 0:00:14.4]} 39. Qd7+ {[%clk 0:00:16.9]} 39... Ka6 {[%clk
0:00:14.1]} 40. Qd6+ {[%clk 0:00:17.1]} 40... Qxd6 {[%clk 0:00:13.8]} 41. Rxd6+
{[%clk 0:00:18]} 41... Ka5 {[%clk 0:00:14.1]} 42. h5 {[%clk 0:00:17.8]} 42...
Kb4 {[%clk 0:00:14.1]} 43. h6 {[%clk 0:00:17.3]} 43... Kc3 {[%clk 0:00:14.1]}
44. Rc6+ {[%clk 0:00:17.9]} 44... Kd4 {[%clk 0:00:13.4]} 45. h7 {[%clk
0:00:18.8]} 45... e4 {[%clk 0:00:12.6]} 46. h8=Q+ {[%clk 0:00:18.6]} 46... Ke3
{[%clk 0:00:12.9]} 47. Qc3+ {[%clk 0:00:17.9]} 47... Kf2 {[%clk 0:00:12.9]} 48.
Rf6+ {[%clk 0:00:18.2]} 48... Ke2 {[%clk 0:00:10]} 49. Qd4 {[%clk 0:00:16.4]}
49... e3 {[%clk 0:00:09.7]} 50. Qd3+ {[%clk 0:00:16.7]} 50... Ke1 {[%clk
0:00:09.3]} 51. Rf1# {[%clk 0:00:17]} 1-0

[Event "*** SCC Grand Prix: Titled Tuesday Blitz"]
[Site "Chess.com"]
[Date "2020.08.11"]
[Round "9"]
[White "MasterSonnevanck23"]
[Black "Ind1anStar"]
[Result "1/2-1/2"]
[WhiteElo "2352"]
[BlackElo "2505"]
[TimeControl "180+1"]
[EndTime "11:46:16 PDT"]
[Termination "Game drawn by repetition"]

1. c4 {[%clk 0:03:00.9]} 1... e6 {[%clk 0:02:59.8]} 2. Nc3 {[%clk 0:02:57.3]}
2... d5 {[%clk 0:02:59.9]} 3. d4 {[%clk 0:02:56.9]} 3... Be7 {[%clk 0:02:59.5]}
4. cxd5 {[%clk 0:02:56.6]} 4... exd5 {[%clk 0:02:59.6]} 5. Bf4 {[%clk
0:02:57.1]} 5... Nf6 {[%clk 0:03:00.3]} 6. e3 {[%clk 0:02:54.9]} 6... O-O {[%clk
0:03:00.8]} 7. Bd3 {[%clk 0:02:53]} 7... c6 {[%clk 0:03:01.3]} 8. h3 {[%clk
0:02:47.2]} 8... Nbd7 {[%clk 0:03:01]} 9. Nf3 {[%clk 0:02:46.8]} 9... Re8 {[%clk
0:03:01.5]} 10. O-O {[%clk 0:02:45]} 10... Nf8 {[%clk 0:03:01.6]} 11. Qc2 {[%clk
0:02:42.1]} 11... Ng6 {[%clk 0:03:00.9]} 12. Bh2 {[%clk 0:02:41.7]} 12... Bd6
{[%clk 0:03:00.8]} 13. Bxd6 {[%clk 0:02:37.7]} 13... Qxd6 {[%clk 0:03:01]} 14.
Rab1 {[%clk 0:02:32.9]} 14... Bd7 {[%clk 0:03:01]} 15. b4 {[%clk 0:02:32.3]}
15... a6 {[%clk 0:03:01.4]} 16. a4 {[%clk 0:02:28.8]} 16... Rac8 {[%clk
0:03:01.8]} 17. a5 {[%clk 0:02:25.1]} 17... Re7 {[%clk 0:02:17.4]} 18. Na4
{[%clk 0:02:24.3]} 18... Ne4 {[%clk 0:02:16.3]} 19. Nc5 {[%clk 0:02:22.7]} 19...
Bf5 {[%clk 0:01:41]} 20. g4 {[%clk 0:02:17.9]} 20... Be6 {[%clk 0:01:09]} 21.
Nxe4 {[%clk 0:02:12.8]} 21... dxe4 {[%clk 0:01:09.9]} 22. Bxe4 {[%clk
0:02:12.6]} 22... Bd5 {[%clk 0:01:02.5]} 23. Bxd5 {[%clk 0:02:02.4]} 23... Qxd5
{[%clk 0:01:03.4]} 24. Ne1 {[%clk 0:01:53.8]} 24... h5 {[%clk 0:00:54.6]} 25.
Qf5 {[%clk 0:01:51.1]} 25... Qxf5 {[%clk 0:00:50.1]} 26. gxf5 {[%clk 0:01:51]}
26... Nh4 {[%clk 0:00:50.8]} 27. f6 {[%clk 0:01:49.2]} 27... gxf6 {[%clk
0:00:51.7]} 28. Ng2 {[%clk 0:01:46.7]} 28... Nf3+ {[%clk 0:00:51.4]} 29. Kh1
{[%clk 0:01:45.8]} 29... Nd2 {[%clk 0:00:51.9]} 30. Rfd1 {[%clk 0:01:43.3]}
30... Nxb1 {[%clk 0:00:51.8]} 31. Rxb1 {[%clk 0:01:43.6]} 31... Kh7 {[%clk
0:00:51.9]} 32. Nf4 {[%clk 0:01:43.4]} 32... Kh6 {[%clk 0:00:52.4]} 33. Rc1
{[%clk 0:01:42.8]} 33... Rg8 {[%clk 0:00:49.4]} 34. Kh2 {[%clk 0:01:33.2]} 34...
Rg5 {[%clk 0:00:46.5]} 35. h4 {[%clk 0:01:31.9]} 35... Rb5 {[%clk 0:00:44.8]}
36. Rc4 {[%clk 0:01:17.2]} 36... Re8 {[%clk 0:00:39.1]} 37. Nd3 {[%clk
0:01:16.5]} 37... Rg8 {[%clk 0:00:36.9]} 38. Nc5 {[%clk 0:01:14.1]} 38... Rg4
{[%clk 0:00:34.7]} 39. f3 {[%clk 0:01:06.3]} 39... Rg8 {[%clk 0:00:21.9]} 40.
Ne4 {[%clk 0:00:59.3]} 40... Rf5 {[%clk 0:00:17.8]} 41. f4 {[%clk 0:00:57.3]}
41... Rg4 {[%clk 0:00:09.4]} 42. Kh3 {[%clk 0:00:52]} 42... Rg1 {[%clk
0:00:08.9]} 43. Nd6 {[%clk 0:00:51.7]} 43... Rd5 {[%clk 0:00:07.7]} 44. Nxb7
{[%clk 0:00:39]} 44... Re1 {[%clk 0:00:07.9]} 45. Nc5 {[%clk 0:00:36.5]} 45...
Rxe3+ {[%clk 0:00:08]} 46. Kg2 {[%clk 0:00:36.4]} 46... Rf5 {[%clk 0:00:06.8]}
47. Nxa6 {[%clk 0:00:33.7]} 47... Rxf4 {[%clk 0:00:07]} 48. Rxc6 {[%clk
0:00:33.2]} 48... Rd3 {[%clk 0:00:04.3]} 49. b5 {[%clk 0:00:31.6]} 49... Rdxd4
{[%clk 0:00:04.7]} 50. b6 {[%clk 0:00:31.2]} 50... Rg4+ {[%clk 0:00:02.8]} 51.
Kf3 {[%clk 0:00:29.6]} 51... Rgf4+ {[%clk 0:00:02.9]} 52. Ke3 {[%clk 0:00:28.9]}
52... Rfe4+ {[%clk 0:00:03.4]} 53. Kf3 {[%clk 0:00:29]} 53... Rf4+ {[%clk
0:00:02.8]} 54. Ke3 {[%clk 0:00:29]} 54... Rfe4+ {[%clk 0:00:03.4]} 55. Kf3
{[%clk 0:00:29.1]} 55... Rf4+ {[%clk 0:00:03.9]} 1/2-1/2

[Event "*** SCC Grand Prix: Titled Tuesday Blitz"]
[Site "Chess.com"]
[Date "2020.08.11"]
[Round "9"]
[White "GukeshDommaraju"]
[Black "TranJMinh"]
[Result "0-1"]
[WhiteElo "2668"]
[BlackElo "2840"]
[TimeControl "180+1"]
[EndTime "11:46:17 PDT"]
[Termination "TranJMinh won by checkmate"]

1. e4 {[%clk 0:03:00.9]} 1... c5 {[%clk 0:02:59.9]} 2. Nf3 {[%clk 0:03:00.8]}
2... d6 {[%clk 0:03:00.5]} 3. d4 {[%clk 0:03:00.7]} 3... cxd4 {[%clk 0:03:01.4]}
4. Nxd4 {[%clk 0:03:01.6]} 4... Nf6 {[%clk 0:03:02]} 5. Nc3 {[%clk 0:03:02.1]}
5... a6 {[%clk 0:03:02.6]} 6. Be2 {[%clk 0:02:54.6]} 6... e5 {[%clk 0:03:03]} 7.
Nb3 {[%clk 0:02:54.5]} 7... Be7 {[%clk 0:03:03.3]} 8. Be3 {[%clk 0:02:53.3]}
8... O-O {[%clk 0:03:03.1]} 9. g4 {[%clk 0:02:53.5]} 9... Be6 {[%clk 0:02:45.2]}
10. g5 {[%clk 0:02:46.1]} 10... Nfd7 {[%clk 0:02:42.7]} 11. h4 {[%clk
0:02:35.7]} 11... Nc6 {[%clk 0:02:43.1]} 12. Qd2 {[%clk 0:02:34.2]} 12... f5
{[%clk 0:02:39.9]} 13. exf5 {[%clk 0:02:25.9]} 13... Bxf5 {[%clk 0:02:37.2]} 14.
Nd5 {[%clk 0:02:25.8]} 14... Rc8 {[%clk 0:02:16.9]} 15. c3 {[%clk 0:02:13]}
15... Be4 {[%clk 0:02:07]} 16. Rf1 {[%clk 0:01:58.6]} 16... a5 {[%clk
0:01:40.8]} 17. a4 {[%clk 0:01:32.5]} 17... Kh8 {[%clk 0:01:34.9]} 18. Bg4
{[%clk 0:01:22]} 18... Rb8 {[%clk 0:01:26.3]} 19. Rd1 {[%clk 0:00:48.2]} 19...
Nd4 {[%clk 0:00:54.8]} 20. Nxe7 {[%clk 0:00:26.9]} 20... Nc2+ {[%clk 0:00:48.2]}
21. Ke2 {[%clk 0:00:26.5]} 21... Qxe7 {[%clk 0:00:49.1]} 22. Qxd6 {[%clk
0:00:25.6]} 22... Qf7 {[%clk 0:00:49.7]} 23. Nd2 {[%clk 0:00:19]} 23... Bf5
{[%clk 0:00:47]} 24. Bxf5 {[%clk 0:00:17]} 24... Qxf5 {[%clk 0:00:47.9]} 25. Qd3
{[%clk 0:00:17.1]} 25... Nxe3 {[%clk 0:00:38.4]} 26. Qxe3 {[%clk 0:00:12.5]}
26... Qg4+ {[%clk 0:00:35.9]} 27. f3 {[%clk 0:00:12.6]} 27... Qxa4 {[%clk
0:00:36.4]} 28. Ne4 {[%clk 0:00:08.8]} 28... b6 {[%clk 0:00:26.8]} 29. b3 {[%clk
0:00:06.7]} 29... Qc6 {[%clk 0:00:24.7]} 30. Rd6 {[%clk 0:00:06.7]} 30... Qc7
{[%clk 0:00:22.6]} 31. g6 {[%clk 0:00:07.1]} 31... Nc5 {[%clk 0:00:20.2]} 32.
Rfd1 {[%clk 0:00:05.1]} 32... Nxe4 {[%clk 0:00:12.8]} 33. fxe4 {[%clk 0:00:06]}
33... a4 {[%clk 0:00:06.3]} 34. bxa4 {[%clk 0:00:04]} 34... Qc4+ {[%clk
0:00:06.5]} 35. Qd3 {[%clk 0:00:04.5]} 35... Qxa4 {[%clk 0:00:04.2]} 36. gxh7
{[%clk 0:00:03.9]} 36... Qa2+ {[%clk 0:00:04.3]} 37. Rd2 {[%clk 0:00:03.9]}
37... Qf7 {[%clk 0:00:05.2]} 38. Kd1 {[%clk 0:00:02.9]} 38... Ra8 {[%clk
0:00:05.7]} 39. Rxb6 {[%clk 0:00:02.2]} 39... Ra1+ {[%clk 0:00:05.9]} 40. Kc2
{[%clk 0:00:02.5]} 40... Qa2+ {[%clk 0:00:02.9]} 41. Rb2 {[%clk 0:00:03]} 41...
Qa4+ {[%clk 0:00:03.6]} 42. Rb3 {[%clk 0:00:03.5]} 42... Ra2+ {[%clk 0:00:04.1]}
43. Kc1 {[%clk 0:00:02.9]} 43... Qxb3 {[%clk 0:00:04.7]} 44. Qd6 {[%clk
0:00:02.6]} 44... Ra1# {[%clk 0:00:04.6]} 0-1